bitfinex-derivatives/quotes_SOLF0:USTF0_20250516
["timestamp","ask_amount","ask_price","bid_price","bid_amount"]
[1747421484661,5.8602,170.58,170.51,61.34]
[1747421484858,5.8602,170.58,170.55,5.8608]
[1747421485064,5.8603,170.57,170.52,61.32]
[1747421485268,60.74,170.59,170.47,3.9685]
[1747421485566,60.74,170.59,170.48,61.32]
[1747421485776,61.32,170.58,170.48,61.32]
[1747421485973,61.32,170.58,170.51,5.8624]
[1747421486976,61.32,170.58,170.48,61.32]
[1747421487573,5.8612,170.55,170.52,5.862]
[1747421487769,66.4812,170.55,170.52,5.862]
[1747421488675,121.9,170.58,170.49,60.6]
[1747421489173,66.44,170.58,170.49,60.6]
[1747421489777,66.44,170.58,170.55,5.8608]
[1747421490879,127.04,170.58,170.37,11.7339]
[1747421491083,17.28588902,170.54,170.37,72.3339]
[1747421491378,123.4893,170.53,170.41,5.8657]
[1747421491578,123.4893,170.53,170.38,5.9284]
[1747421491978,17.28588902,170.5,170.38,11.795]
[1747421492279,123.5319,170.49,170.37,60.6]
[1747421492468,5.8656,170.42,170.37,67.64091559]
[1747421492671,61.08,170.43,170.37,67.64091559]
[1747421493073,5.8661,170.41,170.37,67.64091559]
[1747421493379,5.8661,170.41,170.37,61.77391559]
[1747421494277,61.08,170.43,170.37,1.17391559]
[1747421494679,17.28588902,170.42,170.26,60.62]
[1747421494878,17.28588902,170.42,170.22,506.7]
[1747421494879,17.28588902,170.38,170.27,1.17460503]
[1747421495078,121.72,170.37,170.27,1.17460503]
[1747421496074,5.8685,170.34,170.28,5.8703]
[1747421496275,61.14,170.33,170.29,1.17446708]
[1747421496985,61.14,170.33,170.29,7.04436708]
[1747421497378,61.14,170.33,170.29,1.17446708]
[1747421497585,61.14,170.33,170.3,5.8696]
[1747421497883,61.14,170.33,170.29,1.17446708]
[1747421498182,127.6489,170.33,170.29,1.17446708]
[1747421498384,121.78,170.33,170.29,1.17446708]
[1747421498585,5.8692,170.32,170.29,1.17446708]
[1747421498781,121.78,170.33,170.29,1.17446708]
[1747421499080,121.78,170.33,170.3,5.8694]
[1747421499280,121.78,170.33,170.29,1.17446708]
[1747421500084,121.78,170.33,170.29,7.04436708]
[1747421500286,121.78,170.33,170.29,1.17446708]
[1747421501086,121.78,170.33,170.32,5.8689]
[1747421501386,61.14,170.33,170.32,5.8689]
[1747421501686,60.64,170.34,170.32,5.8689]
[1747421501880,60.64,170.37,170.29,1.17446708]
[1747421502185,60.64,170.37,170.3,60.64]
[1747421502381,60.64,170.37,170.35,5.8676]
[1747421502581,60.64,170.37,170.3,60.64]
[1747421502881,1.8923,170.43,170.3,60.64]
[1747421503114,121.82,170.42,170.3,60.64]
[1747421503313,5.8666,170.39,170.35,5.8677]
[1747421503502,61.14,170.38,170.3,60.64]
[1747421503701,60.66,170.42,170.3,60.64]
[1747421504001,61.14,170.41,170.31,1.9923]
[1747421504894,67.0061,170.41,170.37,5.8669]
[1747421505097,67.0061,170.41,170.31,1.9923]
[1747421506394,67.0061,170.41,170.38,5.8668]
[1747421506795,61.02,170.4,170.38,5.8668]
[1747421507986,61.02,170.4,170.39,5.8665]
[1747421508190,61.02,170.4,170.31,5.7349]
[1747421508191,60.66,170.42,170.34,60.66]
[1747421508388,121.64,170.42,170.34,60.66]
[1747421508588,60.98,170.42,170.41,5.8658]
[1747421508786,60.98,170.42,170.31,23.02078902]
[1747421509090,60.66,170.41,170.31,64.4995]
[1747421509291,60.66,170.41,170.34,5.8682]
[1747421509491,60.66,170.41,170.31,64.4995]
[1747421509695,60.66,170.41,170.35,5.8676]
[1747421509892,60.66,170.41,170.31,64.4995]
[1747421510589,66.5261,170.41,170.37,5.8669]
[1747421511088,60.66,170.41,170.37,5.8669]
[1747421511390,5.8662,170.4,170.37,5.8669]
[1747421512591,5.8662,170.4,170.38,5.8669]
[1747421512991,60.66,170.41,170.31,64.4995]
[1747421513993,60.66,170.41,170.32,60.92]
[1747421514490,60.66,170.41,170.38,5.8667]
[1747421515292,60.66,170.41,170.39,5.8664]
[1747421515691,60.66,170.41,170.32,60.92]
[1747421515894,60.66,170.41,170.39,5.8664]
[1747421516191,60.92,170.42,170.35,60.66]
[1747421516586,60.92,170.42,170.4,5.8659]
[1747421517189,60.92,170.42,170.41,5.8658]
[1747421517489,121.48,170.44,170.35,60.66]
[1747421517792,121.48,170.44,170.41,5.8656]
[1747421518189,127.3448,170.44,170.41,5.8656]
[1747421518893,5.8652,170.43,170.35,60.66]
[1747421519196,121.48,170.44,170.35,60.66]
[1747421519497,5.8655,170.42,170.38,5.8666]
[1747421519998,5.8659,170.41,170.37,5.8671]
[1747421520390,121.48,170.44,170.33,62.7161]
[1747421520585,121.48,170.44,170.4,5.866]
[1747421521596,121.48,170.44,170.33,62.7161]
[1747421522098,5.8652,170.43,170.33,62.7161]
[1747421522594,5.866,170.41,170.37,5.867]
[1747421522792,121.48,170.44,170.37,5.867]
[1747421522995,121.48,170.44,170.33,1.9161]
[1747421523298,121.48,170.44,170.36,5.8673]
[1747421523498,121.48,170.44,170.33,1.9161]
[1747421523800,5.8669,170.38,170.35,5.8677]
[1747421523998,60.7,170.39,170.32,60.8]
[1747421524199,60.7,170.39,170.31,3.8395]
[1747421524395,5.8674,170.37,170.33,5.8682]
[1747421524894,5.867,170.38,170.34,5.8682]
[1747421525101,60.7,170.39,170.31,3.8395]
[1747421525401,60.7,170.39,170.33,5.8684]
[1747421525699,5.8674,170.37,170.33,5.8684]
[1747421525901,5.8674,170.37,170.31,3.8395]
[1747421526296,60.7,170.39,170.34,5.868]
[1747421526502,60.7,170.39,170.31,3.8395]
[1747421526894,60.7,170.39,170.32,1.99]
[1747421527402,5.8671,170.38,170.34,5.8682]
[1747421528096,5.8671,170.38,170.35,5.8678]
[1747421529202,60.7,170.39,170.29,60.8]
[1747421530095,5.8677,170.36,170.32,5.8689]
[1747421531304,5.8677,170.36,170.33,5.8685]
[1747421531904,60.7,170.39,170.29,60.8]
[1747421532298,60.7,170.39,170.3,60.62]
[1747421532504,66.5668,170.39,170.35,5.8676]
[1747421532801,60.7,170.39,170.35,5.8676]
[1747421533107,5.8671,170.38,170.34,5.8681]
[1747421533506,60.7,170.39,170.34,5.8681]
[1747421534604,5.8672,170.37,170.34,5.8681]
[1747421535609,5.867,170.38,170.35,5.8679]
[1747421535808,60.7,170.39,170.3,60.62]
[1747421536208,66.5666,170.39,170.36,5.8674]
[1747421536405,60.7,170.39,170.3,60.62]
[1747421536601,60.7,170.39,170.28,62.6622]
[1747421537207,17.28588902,170.38,170.22,566.68932195]
[1747421537509,17.28588902,170.38,170.25,64.6622]
[1747421537708,17.65,170.37,170.25,3.8622]
[1747421537907,60.8,170.36,170.22,627.48932195]
[1747421538108,60.6,170.35,170.22,120.78932195]
[1747421539110,5.8699,170.3,170.22,59.98932195]
[1747421539306,60.54,170.3,170.22,59.98932195]
[1747421539510,60.54,170.3,170.2,5.7917]
[1747421540311,5.8712,170.26,170.22,5.8723]
[1747421540609,60.6,170.26,170.2,5.7917]
[1747421541309,60.6,170.26,170.23,5.8718]
[1747421541609,60.6,170.26,170.2,5.7917]
[1747421541811,60.6,170.26,170.24,5.8715]
[1747421542112,60.6,170.26,170.2,5.7917]
[1747421542308,5.872,170.23,170.19,5.8733]
[1747421542511,5.872,170.23,170.13,62.6583]
[1747421542512,60.62,170.22,170.13,62.6583]
[1747421544204,60.62,170.22,170.13,1.8383]
[1747421544403,5.8738,170.18,170.15,5.8745]
[1747421544608,60.62,170.18,170.13,1.8383]
[1747421546505,60.62,170.18,170.16,5.8741]
[1747421547911,60.62,170.18,170.11,60.82]
[1747421548115,60.62,170.18,170.1,3.8016]
[1747421548415,5.8746,170.16,170.12,5.8757]
[1747421548602,60.62,170.18,170.12,5.8757]
[1747421548809,60.62,170.18,170.1,1.9363]
[1747421549113,60.62,170.18,170.11,5.876]
[1747421549309,60.62,170.18,170.1,1.9363]
[1747421549517,17.37087503,170.12,169.92,78.29087503]
[1747421549705,121.64,170.11,169.97,3.9879]
[1747421549908,17.37087503,170.08,169.97,2.0]
[1747421550109,125.6448,170.07,169.97,2.0]
[1747421550715,5.8788,170.04,169.99,5.8801]
[1747421550910,121.64,170.03,169.93,3.9918]
[1747421551110,60.54,170.02,169.94,2.0]
[1747421551915,60.54,170.02,170.01,5.8796]
[1747421553115,60.54,170.02,169.94,2.0]
[1747421554811,60.54,170.02,169.96,5.8811]
[1747421555114,5.8797,170.01,169.93,3.9918]
[1747421555511,5.8797,170.01,169.97,5.8808]
[1747421555716,60.54,170.02,169.93,3.9918]
[1747421556113,60.54,170.02,170.0,5.8799]
[1747421556718,60.54,170.02,169.93,3.9918]
[1747421557119,60.54,170.02,169.94,61.04]
[1747421557416,60.54,170.02,170.0,5.8799]
[1747421557719,60.54,170.02,169.94,61.04]
[1747421557920,60.54,170.02,170.01,5.8796]
[1747421558719,60.6,170.02,170.01,5.8796]
[1747421558912,60.6,170.02,170.0,5.8799]
[1747421560220,5.8786,170.04,170.0,5.8799]
[1747421560620,121.52,170.03,170.0,5.8799]
[1747421560821,4.0048,170.07,170.01,5.8796]
[1747421561012,121.52,170.06,170.01,5.8796]
[1747421561322,5.8786,170.04,170.01,5.8796]
[1747421561618,121.52,170.06,170.0,5.8798]
[1747421561820,121.52,170.06,169.94,61.04]
[1747421562013,525.11,170.12,169.95,60.6]
[1747421562210,138.85087503,170.11,169.95,60.6]
[1747421562414,138.85087503,170.11,169.94,61.06]
[1747421562720,77.97087503,170.11,170.0,5.8799]
[1747421563020,5.8789,170.04,170.0,5.8799]
[1747421563221,121.64,170.03,169.94,61.06]
[1747421564518,121.64,170.03,170.02,5.8793]
[1747421564719,60.6,170.03,170.02,5.8793]
[1747421565018,61.02,170.06,170.04,5.8783]
[1747421565223,60.6,170.06,169.97,60.6]
[1747421565417,60.6,170.06,169.98,63.0141]
[1747421565618,60.6,170.06,170.05,5.8782]
[1747421566020,1.02380042,170.19,169.99,17.37087503]
[1747421566228,5.8743,170.17,170.13,5.8755]
[1747421566528,60.62,170.2,170.13,5.8755]
[1747421566825,60.62,170.2,170.17,5.8741]
[1747421567025,60.62,170.2,170.11,1.9941]
[1747421567425,60.62,170.2,170.17,5.8739]
[1747421567724,60.62,170.2,170.11,1.9941]
[1747421568722,60.62,170.2,170.17,5.8738]
[1747421571431,60.62,170.2,170.11,62.5741]
[1747421571621,60.62,170.2,170.11,123.9341]
[1747421572626,60.62,170.2,170.17,5.874]
[1747421573228,66.4931,170.2,170.17,5.874]
[1747421573630,60.62,170.2,170.17,5.874]
[1747421573928,66.4931,170.2,170.17,5.874]
[1747421575224,5.8734,170.19,170.11,123.9341]
[1747421575429,5.8734,170.19,170.16,5.8744]
[1747421575924,60.62,170.2,170.11,1.9941]
[1747421576125,60.62,170.2,170.09,61.24]
[1747421576324,60.62,170.2,170.13,5.8752]
[1747421576526,5.8743,170.17,170.13,5.8752]
[1747421576721,60.62,170.2,170.07,1.9853]
[1747421576931,77.99087503,170.2,170.07,1.9853]
[1747421577228,5.8758,170.12,170.05,61.26]
[1747421577425,77.99087503,170.2,170.08,5.877]
[1747421577426,95.65087503,170.2,170.08,5.877]
[1747421578224,5.8764,170.11,170.08,5.877]
[1747421580332,5.8769,170.09,170.06,5.8776]
[1747421581130,5.8773,170.08,170.05,5.8781]
[1747421581336,61.2,170.12,170.05,5.8781]
[1747421581538,61.2,170.12,170.02,63.0451]
[1747421581935,5.8764,170.11,170.07,5.8772]
[1747421582236,61.2,170.12,170.02,1.9051]
[1747421582435,61.2,170.12,170.02,63.0451]
[1747421582635,61.2,170.12,170.05,5.8782]
[1747421582935,61.2,170.12,170.0,1.8363]
[1747421583133,5.8778,170.07,170.0,62.9763]
[1747421583333,61.22,170.08,169.97,1.9671]
[1747421583536,61.22,170.07,170.0,5.8797]
[1747421584634,61.22,170.07,169.97,1.9671]
[1747421585335,5.8783,170.05,169.97,1.9671]
[1747421586035,5.8786,170.04,169.97,1.9671]
[1747421586237,61.22,170.07,169.97,1.9671]
[1747421586441,61.22,170.07,170.0,5.8797]
[1747421586738,61.22,170.07,169.97,1.9671]
[1747421587139,61.22,170.07,169.99,1.9956]
[1747421587336,61.22,170.07,170.0,122.4]
[1747421587837,5.8779,170.06,170.0,122.4]
[1747421588039,5.8779,170.06,170.03,5.8787]
[1747421588738,67.0977,170.07,170.04,5.8786]
[1747421589131,61.22,170.07,170.04,5.8786]
[1747421589534,61.22,170.07,170.0,122.4]
[1747421589932,67.0978,170.07,170.0,122.4]
[1747421590237,61.22,170.07,170.03,5.8787]
[1747421590537,61.22,170.07,170.0,122.4]
[1747421591236,61.22,170.1,170.0,122.4]
[1747421591436,122.28,170.11,170.0,122.4]
[1747421591638,5.8769,170.09,170.0,122.4]
[1747421592233,122.28,170.11,170.0,122.4]
[1747421592731,5.8777,170.07,170.04,5.8785]
[1747421593134,5.878,170.06,170.04,5.8785]
[1747421593432,5.878,170.06,169.99,1.9956]
[1747421593636,122.28,170.11,169.99,124.2156]
[1747421594240,5.8774,170.08,170.05,5.878]
[1747421595042,61.22,170.11,169.99,124.2156]
[1747421595234,60.96,170.1,169.99,124.2156]
[1747421595739,66.8367,170.1,170.07,5.8775]
[1747421596141,60.96,170.1,170.07,5.8775]
[1747421597643,61.22,170.11,170.09,5.8769]
[1747421597937,11.7451,170.22,170.03,132.9704923]
[1747421598141,67.0945,170.16,170.13,5.8753]
[1747421598639,61.22,170.16,170.07,3.8942]
[1747421598845,61.22,170.16,170.07,126.0342]
[1747421599141,67.0945,170.16,170.13,5.8753]
[1747421599649,61.22,170.16,170.14,5.875]
[1747421599838,61.22,170.16,170.07,126.0342]
[1747421600141,61.22,170.16,170.14,5.8749]
[1747421600343,61.22,170.16,170.07,126.0342]
[1747421600643,5.8749,170.15,170.07,126.0342]
[1747421601343,61.22,170.16,170.07,126.0342]
[1747421602047,569.02,170.19,170.07,126.0342]
[1747421602244,61.22,170.19,170.07,126.0342]
[1747421602948,5.8738,170.18,170.15,5.8746]
[1747421603339,5.8738,170.18,170.11,122.06]
[1747421603843,67.0935,170.19,170.16,5.8744]
[1747421604245,5.8738,170.18,170.11,122.06]
[1747421604447,61.22,170.19,170.07,3.8942]
[1747421604647,61.22,170.19,170.08,121.98]
[1747421606558,5.8746,170.16,170.13,5.8753]
[1747421607357,5.8746,170.16,170.14,5.8751]
[1747421607659,5.8742,170.17,170.14,5.8751]
[1747421607857,61.22,170.19,170.13,5.8754]
[1747421608158,5.8747,170.16,170.13,5.8754]
[1747421609159,5.8747,170.16,170.14,5.8751]
[1747421609365,5.8742,170.17,170.14,5.8751]
[1747421609559,78.84410505,170.2,170.09,17.34942807]
[1747421609754,60.62,170.22,170.21,5.8727]
[1747421609956,60.62,170.26,170.16,60.72]
[1747421610263,60.62,170.3,170.17,23.20712807]
[1747421610455,5.87,170.29,170.17,23.20712807]
[1747421610658,121.36,170.3,170.17,23.20712807]
[1747421611059,121.36,170.3,170.18,121.4]
[1747421611259,121.36,170.3,170.21,5.8726]
[1747421611561,5.8716,170.25,170.21,5.8726]
[1747421611767,121.36,170.3,170.21,5.8726]
[1747421612252,5.8719,170.24,170.21,5.8726]
[1747421612459,121.36,170.3,170.17,127.1977]
[1747421614066,5.8722,170.23,170.17,127.1977]
[1747421614364,121.34,170.26,170.17,127.1977]
[1747421614664,121.34,170.26,170.21,5.8725]
[1747421614871,121.34,170.26,170.17,127.1977]
[1747421615162,5.8719,170.24,170.21,5.8725]
[1747421615966,5.8719,170.24,170.22,5.8723]
[1747421616565,5.8719,170.24,170.21,5.8725]
[1747421617566,5.8722,170.23,170.2,5.8729]
[1747421617865,121.34,170.26,170.17,5.8577]
[1747421618062,5.873,170.21,170.18,5.8737]
[1747421618365,60.54,170.22,170.14,60.6]
[1747421618568,121.14,170.22,170.14,60.6]
[1747421618965,5.8733,170.2,170.17,5.8739]
[1747421619364,121.14,170.22,170.14,60.6]
[1747421619565,127.0315,170.25,170.22,5.8723]
[1747421619759,5.8715,170.25,170.22,5.8723]
[1747421619958,60.56,170.26,170.18,60.6]
[1747421620263,5.8719,170.24,170.21,5.8725]
[1747421620761,5.8724,170.22,170.2,5.873]
[1747421620968,60.56,170.26,170.18,60.6]
[1747421621164,60.56,170.26,170.15,60.6]
[1747421621561,5.8727,170.21,170.15,60.6]
[1747421622062,5.8727,170.21,170.18,5.8736]
[1747421622366,5.8727,170.21,170.15,60.6]
[1747421622859,5.8727,170.21,170.18,5.8736]
[1747421623055,60.52,170.22,170.15,60.6]
[1747421623566,66.3926,170.22,170.19,5.8733]
[1747421623969,60.52,170.22,170.18,5.8736]
[1747421624167,5.8729,170.21,170.18,5.8736]
[1747421624368,60.52,170.22,170.15,60.6]
[1747421624856,60.52,170.22,170.13,1.8363]
[1747421625462,60.52,170.22,170.13,12.67116682]
[1747421625659,60.52,170.22,170.2,5.8729]
[1747421625863,60.52,170.22,170.15,60.6]
[1747421626769,66.3926,170.22,170.19,5.8732]
[1747421627364,60.52,170.22,170.2,5.8727]
[1747421628068,60.52,170.22,170.21,5.8727]
[1747421628469,1.8685,170.26,170.15,60.6]
[1747421628470,66.3315,170.25,170.15,60.6]
[1747421628672,60.46,170.25,170.22,5.8722]
[1747421628867,5.8715,170.25,170.22,5.8722]
[1747421629064,66.3115,170.25,170.16,10.83486682]
[1747421629264,66.3115,170.25,170.15,60.6]
[1747421629665,60.44,170.25,170.15,60.6]
[1747421631570,5.872,170.23,170.21,5.8726]
[1747421632470,5.8718,170.24,170.22,5.8723]
[1747421632668,60.44,170.25,170.15,60.6]
[1747421633170,66.3115,170.25,170.22,5.8721]
[1747421633368,60.44,170.25,170.15,60.6]
[1747421633771,5.8721,170.23,170.21,5.8727]
[1747421633970,60.44,170.25,170.21,5.8727]
[1747421634275,60.44,170.25,170.15,60.6]
[1747421634276,60.44,170.25,170.17,60.6]
[1747421634875,5.8724,170.22,170.19,5.8732]
[1747421635272,5.8724,170.22,170.17,60.6]
[1747421636876,5.8728,170.21,170.17,60.6]
[1747421637177,5.8728,170.21,170.19,5.8733]
[1747421637677,5.8731,170.2,170.17,66.4739]
[1747421637875,60.44,170.25,170.15,60.28]
[1747421638071,60.44,170.25,170.13,1.8363]
[1747421638277,5.8726,170.22,170.19,5.8734]
[1747421639778,5.8728,170.21,170.19,5.8734]
[1747421640376,60.44,170.25,170.14,60.6]
[1747421640572,60.6,170.26,170.14,60.6]
[1747421640771,66.0519,170.24,170.14,60.6]
[1747421641078,66.0519,170.24,170.21,5.8725]
[1747421641878,5.872,170.23,170.21,5.8725]
[1747421642079,60.18,170.24,170.19,5.8731]
[1747421642483,5.8726,170.22,170.19,5.8731]
[1747421642778,5.8726,170.22,170.2,5.8729]
[1747421643779,5.8722,170.23,170.21,5.8727]
[1747421643989,60.16,170.29,170.18,60.16]
[1747421644281,5.8694,170.31,170.19,63.8681]
[1747421644485,120.36,170.32,170.21,17.32925926]
[1747421644673,60.16,170.35,170.22,60.2]
[1747421644878,60.24,170.34,170.23,60.16]
[1747421645075,60.24,170.34,170.23,71.9039]
[1747421646182,66.1083,170.34,170.31,5.869]
[1747421646382,60.24,170.34,170.27,60.16]
[1747421647085,60.24,170.34,170.24,60.16]
[1747421647590,5.8691,170.32,170.29,5.8699]
[1747421649281,60.24,170.34,170.25,60.16]
[1747421650489,60.24,170.34,170.21,17.32925926]
[1747421650490,60.16,170.35,170.22,11.7448]
[1747421650691,524.90925926,170.43,170.2,1.9448]
[1747421650692,60.18,170.37,170.25,17.32925926]
[1747421650990,66.0671,170.38,170.34,5.868]
[1747421651183,66.0671,170.38,170.3,60.14]
[1747421651791,5.8673,170.37,170.3,60.14]
[1747421651994,60.2,170.38,170.3,60.14]
[1747421652385,5.8678,170.36,170.3,60.14]
[1747421652586,60.2,170.38,170.3,60.14]
[1747421652780,60.14,170.39,170.3,60.14]
[1747421652985,60.14,170.38,170.3,60.14]
[1747421653186,5.8673,170.37,170.3,60.14]
[1747421653694,5.8673,170.37,170.33,5.8683]
[1747421654392,60.14,170.38,170.3,60.14]
[1747421654594,60.1,170.4,170.31,5.7304]
[1747421654987,60.14,170.42,170.31,5.7304]
[1747421654988,120.24,170.42,170.31,5.7304]
[1747421655588,126.1055,170.42,170.31,5.7304]
[1747421656898,126.1055,170.42,170.39,5.8665]
[1747421657697,66.0055,170.42,170.39,5.8665]
[1747421657896,126.0655,170.42,170.39,5.8665]
[1747421658298,120.2,170.42,170.35,60.12]
[1747421658596,60.06,170.45,170.35,60.12]
[1747421658794,120.2,170.46,170.35,60.12]
[1747421658992,509.3698,170.51,170.35,60.12]
[1747421659195,60.12,170.49,170.37,17.32925926]
[1747421659394,60.08,170.51,170.38,61.9162]
[1747421659593,60.08,170.51,170.39,60.12]
[1747421659793,60.08,170.51,170.39,63.9033]
[1747421660194,60.06,170.51,170.49,5.863]
[1747421660386,60.06,170.51,170.44,60.12]
[1747421661498,5.8635,170.48,170.45,5.8642]
[1747421662201,60.06,170.51,170.39,3.7833]
[1747421662408,60.06,170.51,170.4,60.1]
[1747421662590,60.06,170.51,170.39,3.7833]
[1747421662790,77.38925926,170.51,170.39,3.7833]
[1747421662994,5.8653,170.43,170.39,3.7833]
[1747421663901,60.08,170.45,170.39,3.7833]
[1747421664098,60.1,170.47,170.44,5.8645]
[1747421664296,60.1,170.47,170.39,3.7833]
[1747421664495,5.8651,170.44,170.39,3.7833]
[1747421664695,60.1,170.47,170.4,5.8661]
[1747421664901,60.1,170.47,170.39,3.7833]
[1747421665101,5.8649,170.44,170.39,3.7833]
[1747421665401,60.1,170.47,170.39,3.7833]
[1747421665701,5.8649,170.44,170.39,3.7833]
[1747421665903,5.8649,170.44,170.41,5.8656]
[1747421666604,5.8653,170.43,170.4,5.8659]
[1747421666904,5.8653,170.43,170.39,3.7833]
[1747421667400,5.8653,170.43,170.4,5.8661]
[1747421667904,5.8649,170.44,170.41,5.8658]
[1747421668203,60.1,170.47,170.39,3.7833]
[1747421668404,5.8656,170.42,170.39,5.8665]
[1747421668606,5.8656,170.42,170.38,1.8362]
[1747421669001,5.8656,170.42,170.39,5.8663]
[1747421669202,5.8661,170.41,170.38,1.8362]
[1747421669497,60.0,170.44,170.39,5.8662]
[1747421669702,5.8653,170.43,170.38,1.8362]
[1747421669907,60.0,170.44,170.38,1.8362]
[1747421670903,60.0,170.44,170.36,60.1]
[1747421671407,5.8653,170.43,170.36,60.1]
[1747421671804,5.8657,170.42,170.36,60.1]
[1747421672009,60.0,170.44,170.36,60.1]
[1747421672310,5.8672,170.37,170.32,5.8507]
[1747421672706,60.04,170.38,170.32,5.8507]
[1747421673012,65.9072,170.38,170.32,5.8507]
[1747421673412,65.9072,170.38,170.35,5.8677]
[1747421673619,60.06,170.41,170.33,60.12]
[1747421673917,59.96,170.43,170.34,59.96]
[1747421674721,65.8253,170.43,170.34,59.96]
[1747421675019,59.96,170.43,170.34,59.96]
[1747421675219,59.96,170.43,170.32,16.66522461]
[1747421675420,59.96,170.43,170.34,59.96]
[1747421675820,59.96,170.43,170.32,5.8507]
[1747421676020,59.96,170.43,170.33,120.06]
[1747421676211,59.96,170.43,170.32,5.8507]
[1747421676416,59.96,170.43,170.33,120.04]
[1747421676620,5.8656,170.42,170.39,5.8663]
[1747421677022,5.8656,170.42,170.4,5.8661]
[1747421677223,65.8253,170.43,170.4,5.8661]
[1747421677423,59.96,170.43,170.33,120.04]
[1747421677625,59.96,170.43,170.42,5.8655]
[1747421678319,59.96,170.43,170.33,120.04]
[1747421678526,59.96,170.43,170.34,11.7365]
[1747421678728,60.06,170.44,170.34,11.7365]
[1747421678926,120.0,170.46,170.34,11.7365]
[1747421679119,120.0,170.46,170.44,5.8647]
[1747421679522,59.96,170.46,170.45,5.8644]
[1747421679719,59.96,170.5,170.38,71.6938]
[1747421679919,59.96,170.5,170.39,1.8645]
[1747421680214,120.1,170.5,170.47,5.8635]
[1747421680719,59.96,170.5,170.46,5.864]
[1747421680918,120.08,170.5,170.42,59.96]
[1747421681630,59.96,170.5,170.49,5.8631]
[1747421681821,3.9185,170.54,170.42,88.98633595]
[1747421681822,59.96,170.54,170.42,88.98633595]
[1747421682121,60.1,170.53,170.42,88.98633595]
[1747421682321,60.1,170.53,170.52,5.862]
[1747421683426,60.1,170.53,170.51,5.8623]
[1747421683725,60.1,170.53,170.47,59.94]
[1747421684626,60.1,170.53,170.52,5.862]
[1747421685828,5.8607,170.56,170.53,5.8617]
[1747421686027,60.0,170.55,170.53,5.8617]
[1747421687027,5.8607,170.56,170.53,5.8617]
[1747421687325,59.96,170.55,170.53,5.8617]
[1747421687626,59.96,170.55,170.54,5.8614]
[1747421687827,59.94,170.57,170.47,59.94]
[1747421688027,119.9,170.57,170.48,3.8876]
[1747421688726,59.94,170.59,170.57,5.8601]
[1747421690729,59.94,170.59,170.55,5.8608]
[1747421690929,59.94,170.59,170.51,59.94]
[1747421691325,65.7998,170.59,170.51,59.94]
[1747421692029,65.7998,170.59,170.55,5.8608]
[1747421692332,5.86,170.58,170.55,5.8608]
[1747421692833,65.7998,170.59,170.55,5.8608]